fUST/lending_fUST_20240512
["ID","MTS","AMOUNT","RATE_DAILY","PERIOD"]
[326854611,1715514644086,-500.0,0.00020554,2]
[326854613,1715514644096,-4151.76755298,0.00020554,2]
[326854615,1715514644105,-4151.76755298,0.00020554,2]
[326854617,1715514644114,-500.0,0.00020554,2]
[326854619,1715514644123,-2786.4236242,0.00020554,2]
[326854841,1715514646675,-1365.34392878,0.00020554,2]
[326854843,1715514646686,-500.0,0.00020554,2]
[326854845,1715514646696,-500.0,0.00020554,2]
[326854847,1715514646706,-4151.76755298,0.00020554,2]
[326854849,1715514646719,-4151.76755298,0.00020554,2]
[326854852,1715514646730,-500.0,0.00020554,2]
[326854854,1715514646741,-4151.76755298,0.00020554,2]
[326854856,1715514646752,-500.0,0.00020554,2]
[326854858,1715514646764,-500.0,0.00020554,2]
[326854860,1715514646775,-4151.76755298,0.00020554,2]
[326854863,1715514646786,-500.0,0.00020554,2]
[326854865,1715514646797,-4151.76755298,0.00020554,2]
[326854867,1715514646808,-500.0,0.00020554,2]
[326854869,1715514646819,-4151.76755298,0.00020554,2]
[326854871,1715514646831,-4151.76755298,0.00020554,2]
[326854874,1715514646842,-4151.76755298,0.00020554,2]
[326854876,1715514646853,-4151.76755298,0.00020554,2]
[326854878,1715514646864,-500.0,0.00020554,2]
[326854880,1715514646874,-4151.76755298,0.00020554,2]
[326854882,1715514646886,-4151.76755298,0.00020554,2]
[326854884,1715514646898,-500.0,0.00020554,2]
[326854886,1715514646909,-4151.76755298,0.00020554,2]
[326854888,1715514646920,-500.0,0.00020554,2]
[326854891,1715514646932,-4151.76755298,0.00020554,2]
[326854893,1715514646943,-4151.76755298,0.00020554,2]
[326854895,1715514646954,-500.0,0.00020554,2]
[326854897,1715514646965,-4151.76755298,0.00020554,2]
[326854899,1715514646974,-500.0,0.00020554,2]
[326854901,1715514646985,-4151.76755298,0.00020554,2]
[326854903,1715514646995,-598.73543068,0.00020554,2]
[326855788,1715514669722,900.96902525,0.00019523,2]
[326855789,1715514671083,2091.91795427,0.0002,2]
[326855790,1715514687659,157.22766132,9.999e-05,2]
[326855791,1715514693775,604.99701085,0.000185,2]
[326855792,1715514695742,713.0309286,0.00017,2]
[326855793,1715514702074,2594.49494001,9.999e-05,2]
[326855794,1715514955602,1895.4873316,9.999e-05,2]
[326855795,1715515052584,190.028433,0.00019277,2]
[326855796,1715515099105,198.443432,0.00019533,2]
[326855797,1715515244406,1494.73983919,9.999e-05,2]
[326855798,1715515312158,189.71214175,0.00018,2]
[326855799,1715515349088,9325.03354644,9.999e-05,2]
[326855800,1715515349115,3244.32611594,9.999e-05,2]
[326855801,1715515371072,12458.96151099,9.999e-05,2]
[326855802,1715515438190,364.39759139,9.999e-05,2]
[326855803,1715515458125,364.39759139,9.999e-05,2]
[326855804,1715515472118,355.19806788,9.999e-05,2]
[326855805,1715515524413,-3537.2818939,0.00020548,7]
[326855806,1715515528102,732.58097168,0.00020548,7]
[326855807,1715515530304,1768.64094696,0.00020548,7]
[326855808,1715515588179,366.29048584,0.00020548,7]
[326855809,1715515648128,183.14524292,0.00020547,7]
[326855810,1715515650552,884.32047348,0.00020547,7]
[326855811,1715515708403,183.14524291,0.00020547,7]
[326855812,1715515770561,77.40874231,0.00020546,7]
[326855833,1715515831820,-189.71214175,0.00018899,2]
[326855835,1715515831829,-150.0,0.000189,2]
[326855837,1715515831839,-4.34271764,0.00020336,2]
[326855904,1715515837805,-5093.88729722,0.00020336,2]
[326855984,1715515841360,-2788.20650792,0.00020336,2]
[326855985,1715515841373,-9388.70802364,0.00020337,2]
[326855986,1715515841382,-3458.80437389,0.00020338,2]
[326855987,1715515841392,-165.35574482,0.0002035,2]
[326855988,1715515841401,-833.42845868,0.00020372,2]
[326855989,1715515841411,-175.96056307,0.00020447,2]
[326855990,1715515841420,-161.8,0.00020537,3]
[326855991,1715515841430,-485.44,0.00020537,3]
[326855992,1715515841441,-500.0,0.00020545,2]
[326855993,1715515841450,-306.66331508,0.00020545,2]
[326855994,1715515841458,-500.0,0.00020545,2]
[326855995,1715515841467,-293.12284624,0.00020545,2]
[326855996,1715515841477,-4394.89185674,0.00020545,2]
[326855997,1715515841485,-145.43776533,0.00020545,2]
[326856054,1715515843076,-0.6207581,0.00020545,2]
[326856055,1715515843089,-2776.5,0.00020545,2]
[326856056,1715515843100,-1472.33333331,0.00020545,2]
[326856057,1715515843109,-500.0,0.00020545,2]
[326856058,1715515843117,-4394.89185674,0.00020545,2]
[326856059,1715515843126,-533.71205024,0.00020545,2]
[326856060,1715515843135,-4394.89185674,0.00020545,2]
[326856061,1715515843144,-464.0456537,0.00020545,2]
[326856062,1715515843153,-4394.89185674,0.00020545,2]
[326856063,1715515843162,-4394.89185674,0.00020545,2]
[326856064,1715515843171,-4394.89185674,0.00020545,2]
[326856065,1715515843179,-4394.89185674,0.00020545,2]
[326856066,1715515843188,-360.90573157,0.00020545,2]
[326856067,1715515843200,-4033.98612517,0.00020545,2]
[326856068,1715515843209,-2378.36127779,0.00020545,2]
[326856069,1715515843220,-2016.53057895,0.00020545,2]
[326856070,1715515843229,-4394.89185674,0.00020545,2]
[326856071,1715515843237,-4394.89185674,0.00020545,2]
[326856072,1715515843246,-4394.89185674,0.00020545,2]
[326856073,1715515843255,-4394.89185674,0.00020545,2]
[326856074,1715515843264,-4394.89185674,0.00020545,2]
[326856075,1715515843273,-4394.89185674,0.00020545,2]
[326856076,1715515843281,-4394.89185674,0.00020545,2]
[326856077,1715515843290,-4394.89185674,0.00020545,2]
[326856078,1715515843299,-4394.89185674,0.00020545,2]
[326856079,1715515843308,-4394.89185674,0.00020545,2]
[326856080,1715515843317,-4394.89185674,0.00020545,2]
[326856081,1715515843326,-4394.89185674,0.00020545,2]
[326856082,1715515843336,-4394.89185674,0.00020545,2]
[326856083,1715515843345,-842.56617912,0.00020545,2]
[326856122,1715515846010,-0.01598853,0.00020544,2]
[326856164,1715516618082,283.4284457,0.000137,2]
[326856165,1715516646357,7929.29067671,0.000137,2]
[326856166,1715516646398,8202.83994919,0.000137,2]
[326856167,1715516660356,16132.1306259,0.000137,2]
[326856168,1715516678365,3413.35027017,0.000137,2]
[326856170,1715516843823,817.27495953,9.999e-05,2]
[326856171,1715516889661,160.9381173,9.999e-05,2]
[326856172,1715516899341,1245.04426602,9.999e-05,2]
[326856173,1715516908900,155.67907992,9.999e-05,2]
[326856174,1715516951258,581.7424777,9.999e-05,2]
[326856175,1715516982067,465.56886578,9.999e-05,2]
[326856176,1715516982098,584.66678309,9.999e-05,2]
[326856222,1715517032078,-150.0,0.000189,2]
[326856224,1715517032087,-2675.89686074,0.00019987,2]
[326856226,1715517032101,-292.14138116,0.00019988,2]
[326856493,1715517038024,-5631.0547615,0.00019986,2]
[326856944,1715517043190,-2255.38176128,0.00019986,2]
[326856946,1715517043199,-9096.56664248,0.00019988,2]
[326856948,1715517043209,-154.75239617,0.0002,2]
[326856950,1715517043218,-833.48256303,0.00020067,2]
[326856952,1715517043227,-156.9149708,0.000203,2]
[326856954,1715517043236,-568.35820266,0.00020426,2]
[326856956,1715517043245,-155.36845812,0.00020436,2]
[326856958,1715517043254,-293.646176,0.00020436,2]
[326856960,1715517043264,-816.84501757,0.00020436,2]
[326856962,1715517043273,-1151.1912033,0.00020436,2]
[326856964,1715517043282,-584.26395757,0.00020436,2]
[326856966,1715517043291,-465.23333028,0.00020436,2]
[326856968,1715517043301,-830.31176579,0.00020436,2]
[326856970,1715517043310,-156.36462238,0.00020436,2]
[326856972,1715517043319,-1348.39587866,0.00020437,2]
[326856974,1715517043328,-27876.16720989,0.00020438,2]
[326856976,1715517043337,-323.6,0.00020526,3]
[326856978,1715517043346,-387.93685387,0.00020535,2]
[326856980,1715517043355,-3375.6410679,0.00020535,2]
[326856982,1715517043364,-3375.6410679,0.00020535,2]
[326856984,1715517043373,-3375.6410679,0.00020535,2]
[326856986,1715517043382,-3375.6410679,0.00020535,2]
[326856988,1715517043392,-3375.6410679,0.00020535,2]
[326856990,1715517043401,-3375.6410679,0.00020535,2]
[326856992,1715517043411,-3375.6410679,0.00020535,2]
[326856994,1715517043420,-3375.6410679,0.00020535,2]
[326856996,1715517043429,-3375.6410679,0.00020535,2]
[326856998,1715517043439,-3375.6410679,0.00020535,2]
[326857000,1715517043448,-3375.6410679,0.00020535,2]
[326857002,1715517043457,-3375.6410679,0.00020535,2]
[326857004,1715517043466,-3375.6410679,0.00020535,2]
[326857006,1715517043475,-3375.6410679,0.00020535,2]
[326857008,1715517043485,-3375.6410679,0.00020535,2]
[326857010,1715517043494,-3375.6410679,0.00020535,2]
[326857012,1715517043503,-3375.6410679,0.00020535,2]
[326857014,1715517043512,-3375.6410679,0.00020535,2]
[326857016,1715517043521,-3375.6410679,0.00020535,2]
[326857018,1715517043530,-3375.6410679,0.00020535,2]
[326857020,1715517043539,-3375.6410679,0.00020535,2]
[326857022,1715517043548,-3375.6410679,0.00020535,2]
[326857024,1715517043558,-3375.6410679,0.00020535,2]
[326857025,1715517043571,-3375.6410679,0.00020535,2]
[326857027,1715517043580,-3375.6410679,0.00020535,2]
[326857029,1715517043589,-3375.6410679,0.00020535,2]
[326857031,1715517043599,-3375.6410679,0.00020535,2]
[326857033,1715517043609,-3375.6410679,0.00020535,2]
[326857035,1715517043618,-3375.6410679,0.00020535,2]
[326857037,1715517043628,-3375.6410679,0.00020535,2]
[326857039,1715517043637,-3375.6410679,0.00020535,2]
[326857041,1715517043647,-3375.6410679,0.00020535,2]
[326857043,1715517043656,-3375.6410679,0.00020535,2]
[326857045,1715517043665,-3375.6410679,0.00020535,2]
[326857047,1715517043675,-3375.6410679,0.00020535,2]
[326857049,1715517043684,-3375.6410679,0.00020535,2]
[326857051,1715517043693,-3375.6410679,0.00020535,2]
[326857053,1715517043702,-3375.6410679,0.00020535,2]
[326857055,1715517043712,-3375.6410679,0.00020535,2]
[326857057,1715517043721,-3375.6410679,0.00020535,2]
[326857059,1715517043730,-3375.6410679,0.00020535,2]
[326857061,1715517043739,-3375.6410679,0.00020535,2]
[326857063,1715517043749,-3375.6410679,0.00020535,2]
[326857065,1715517043758,-3375.6410679,0.00020535,2]
[326857068,1715517043768,-3375.6410679,0.00020535,2]
[326857070,1715517043778,-3375.6410679,0.00020535,2]
[326857072,1715517043787,-3375.6410679,0.00020535,2]
[326857073,1715517043796,-403.45586558,0.00020536,7]
[326857074,1715517043805,-151.0,0.00020536,2]
[326857076,1715517043815,-151.0,0.00020536,2]
[326857078,1715517043824,-151.0,0.00020536,2]
[326857080,1715517043833,-151.0,0.00020536,2]
[326857081,1715517043842,-151.0,0.00020536,2]
[326857083,1715517043851,-151.0,0.00020536,2]
[326857085,1715517043862,-151.0,0.00020536,2]
[326857087,1715517043871,-151.0,0.00020536,2]
[326857089,1715517043880,-151.0,0.00020536,2]
[326857091,1715517043889,-151.0,0.00020536,2]
[326857093,1715517043899,-151.0,0.00020536,2]
[326857095,1715517043908,-182.846576,0.00020536,2]
[326857097,1715517043918,-277.739171,0.00020536,2]
[326857099,1715517043927,-277.739171,0.00020536,2]
[326857101,1715517043937,-277.739171,0.00020536,2]
[326857103,1715517043946,-277.739171,0.00020536,2]
[326857105,1715517043956,-277.739171,0.00020536,2]
[326857107,1715517043965,-277.739171,0.00020536,2]
[326857109,1715517043975,-277.739171,0.00020536,2]
[326857111,1715517043983,-277.739171,0.00020536,2]
[326857113,1715517043992,-277.739171,0.00020536,2]
[326857115,1715517044001,-277.739171,0.00020536,2]
[326857117,1715517044011,-277.739171,0.00020536,2]
[326857119,1715517044020,-277.739171,0.00020536,2]
[326857121,1715517044029,-277.739171,0.00020536,2]
[326857122,1715517044038,-277.739171,0.00020536,2]
[326857123,1715517044047,-277.739171,0.00020536,2]
[326857124,1715517044056,-277.739171,0.00020536,2]
[326857126,1715517044065,-151.0,0.00020537,2]
[326857128,1715517044074,-151.0,0.00020537,2]
[326857130,1715517044084,-151.0,0.00020537,2]
[326857132,1715517044094,-159.773306,0.00020537,2]
[326857134,1715517044115,-151.0,0.00020537,2]
[326857136,1715517044134,-151.0,0.00020537,2]
[326857138,1715517044152,-151.0,0.00020537,2]
[326857140,1715517044162,-151.0,0.00020537,2]
[326857142,1715517044171,-151.0,0.00020537,2]
[326857144,1715517044180,-151.0,0.00020537,2]
[326857146,1715517044190,-247.431776,0.00020537,2]
[326857148,1715517044199,-151.0,0.00020538,2]
[326857150,1715517044209,-151.0,0.00020538,2]
[326857152,1715517044218,-151.0,0.00020538,2]
[326857154,1715517044228,-191.761827,0.00020538,2]
[326857156,1715517044237,-191.761827,0.00020538,2]
[326857158,1715517044245,-191.761827,0.00020538,2]
[326857160,1715517044254,-191.761827,0.00020538,2]
[326857162,1715517044263,-191.761827,0.00020538,2]
[326857164,1715517044272,-191.761827,0.00020538,2]
[326857172,1715517044398,-191.761827,0.00020538,2]
[326857173,1715517044407,-191.761827,0.00020538,2]
[326857174,1715517044416,-191.761827,0.00020538,2]
[326857175,1715517044425,-191.761827,0.00020538,2]
[326857176,1715517044434,-191.761827,0.00020538,2]
[326857177,1715517044443,-191.761827,0.00020538,2]
[326857178,1715517044452,-191.761827,0.00020538,2]
[326857179,1715517044461,-191.761827,0.00020538,2]
[326857180,1715517044470,-191.761827,0.00020538,2]
[326857181,1715517044478,-191.761827,0.00020538,2]
[326857182,1715517044487,-184.294571,0.00020538,2]
[326857183,1715517044496,-151.0,0.00020539,2]
[326857184,1715517044505,-223.38356,0.00020539,2]
[326857185,1715517044514,-155.05646194,0.0002054,2]
[326857186,1715517044523,-151.0,0.0002054,2]
[326857187,1715517044531,-151.0,0.0002054,2]
[326857188,1715517044540,-158.236448,0.0002054,2]
[326857189,1715517044549,-151.0,0.00020541,2]
[326857190,1715517044558,-220.014386,0.00020541,2]
[326857191,1715517044567,-3000.0,0.00020542,2]
[326857192,1715517044576,-1947.17796706,0.00020542,2]
[326857194,1715517044585,-229.67714736,0.00020544,2]
[326857195,1715517044594,-369.06712061,0.00020544,2]
[326857196,1715517044604,-191.761827,0.00020544,2]
[326857197,1715517044614,-191.761827,0.00020544,2]
[326857198,1715517044623,-1016.08078737,0.00020548,2]
[326857199,1715517044632,-1624.38458646,0.00020549,2]
[326857200,1715517044642,-307.31744595,0.0002055,2]
[326857201,1715517044651,-519.11278913,0.0002055,2]
[326857202,1715517044660,-242.60558826,0.0002055,2]
[326857203,1715517044670,-186.62571484,0.0002055,2]
[326857204,1715517044679,-1390.84485415,0.0002055,2]
[326857205,1715517044688,-2103.44348246,0.0002055,2]
[326857206,1715517044697,-158.86280412,0.0002055,2]
[326857207,1715517044707,-151.0,0.0002055,2]
[326857208,1715517044716,-277.739171,0.0002055,2]
[326857209,1715517044725,-277.739171,0.0002055,2]
[326857210,1715517044735,-263.89956553,0.00020551,2]
[326857211,1715517044744,-36763.63148666,0.00020552,2]
[326857212,1715517044753,-191.761827,0.00020552,2]
[326857213,1715517044762,-191.761829,0.00020552,2]
[326857214,1715517044771,-151.0,0.00020552,2]
[326857215,1715517044780,-277.739171,0.00020552,2]
[326857216,1715517044790,-277.73917706,0.00020552,2]
[326857217,1715517044799,-3068.51153378,0.00020553,2]
[326857218,1715517044808,-173.33652063,0.00020703,2]
[326857219,1715517044818,-11037.63774194,0.00020895,2]
[326857220,1715517044827,-2422.29594172,0.00020903,2]
[326857221,1715517044837,-154.84423191,0.00020903,2]
[326857222,1715517044846,-309.38126526,0.00020903,2]
[326857223,1715517044856,-10691.03166268,0.00020903,2]
[326857282,1715517046039,-272.38076791,0.00018392,2]
[326857285,1715517046050,-6129.5461151,0.00019985,2]
[326857286,1715517046061,-2992.51532566,0.00020903,2]
[326857288,1715517046071,-744.57696609,0.00020903,2]
[326857290,1715517046080,-3988.39304781,0.00021,2]
[326857291,1715517046089,-165.466199,0.00021918,2]
[326857293,1715517046100,-225.0,0.00021918,2]
[326857295,1715517046112,-166.666666,0.00021918,2]
[326857297,1715517046121,-225.0,0.00021918,2]
[326857299,1715517046130,-3000.0,0.00022,2]
[326857300,1715517046140,-244.79332187,0.00022,2]
[326857301,1715517046150,-5229.71545665,0.00022,2]
[326857303,1715517046159,-166.666666,0.00022431,2]
[326857305,1715517046168,-166.666666,0.00022944,2]
[326857307,1715517046179,-166.666666,0.00023456,2]
[326857309,1715517046188,-171.545906,0.00023562,2]
[326857311,1715517046198,-171.098962,0.00023562,2]
[326857313,1715517046207,-163.106766,0.00023562,2]
[326857315,1715517046216,-163.033637,0.00023562,2]
[326857317,1715517046225,-166.666666,0.00023969,2]
[326857319,1715517046234,-166.666666,0.00024482,2]
[326857321,1715517046243,-400.10978683,0.00025,2]
[326857323,1715517046252,-155.24598344,0.00025,2]
[326857325,1715517046261,-167.20514148,0.00025,2]
[326857327,1715517046271,-186.94483115,0.00027,2]
[326857328,1715517046280,-339.60266127,0.00028,2]
[326857330,1715517046289,-154.83809623,0.0003,4]
[326857332,1715517046299,-364.18525395,0.0003,2]
[326857334,1715517046309,-180.0,0.0003,2]
[326857337,1715517046318,-180.0,0.00033,2]
[326857338,1715517046328,-10689.38493145,0.00034,5]
[326857340,1715517046337,-154.75239617,0.00034,2]
[326857342,1715517046346,-158.81785743,0.00034464,7]
[326857344,1715517046355,-153.15121778,0.00034864,7]
[326857346,1715517046364,-170.0,0.00035,30]
[326857348,1715517046373,-776.07599845,0.00035,4]
[326857350,1715517046382,-154.77516392,0.00035254,7]
[326857352,1715517046392,-494.0,0.00035551,2]
[326857353,1715517046401,-152.86934781,0.00035605,7]
[326857354,1715517046410,-2740.14,0.00035616,3]
[326857355,1715517046420,-4357.12,0.00035616,3]
[326857356,1715517046430,-152.86934781,0.00035811,7]
[326857357,1715517046439,-180.0,0.00036,2]
[326857358,1715517046448,-256.79326621,0.0003624,2]
[326857359,1715517046458,-152.86934781,0.00036868,7]
[326857360,1715517046467,-180.0,0.00037,2]
[326857361,1715517046476,-2537.45113816,0.00037,2]
[326857362,1715517046486,-1083.17076095,0.00037254,2]
[326857363,1715517046495,-154.77516392,0.00037351,7]
[326857364,1715517046504,-152.86934781,0.00037414,7]
[326857365,1715517046513,-152.86934781,0.00038113,7]
[326857366,1715517046522,-494.0,0.00038551,2]
[326857367,1715517046531,-158.81785743,0.00038888,7]
[326857368,1715517046540,-180.0,0.00039,2]
[326857369,1715517046549,-152.86934781,0.0003965,7]
[326857370,1715517046558,-643.1038313,0.0003972,2]
[326857371,1715517046567,-171.098962,0.00039765,2]
[326857372,1715517046577,-309.74071762,0.0004,120]
[326857373,1715517046586,-2500.0,0.0004,2]
[326857374,1715517046595,-152.86934781,0.00040303,30]
[326857375,1715517046604,-158.81785743,0.00040839,30]
[326857376,1715517046613,-2500.0,0.00041,2]
[326857377,1715517046622,-493.398,0.00041551,2]
[326857378,1715517046631,-180.0,0.00042,2]
[326857379,1715517046640,-100037.0,0.00042,30]
[326857380,1715517046649,-152.86934781,0.00042471,30]
[326857381,1715517046659,-2500.0,0.00043,30]
[326857382,1715517046669,-1005.05802659,0.00043231,14]
[326857383,1715517046678,-532.8183368,0.00043231,2]
[326857384,1715517046687,-154.93350023,0.00043238,2]
[326857385,1715517046696,-10667.76229783,0.0004324,120]
[326857386,1715517046706,-790.51054256,0.00043241,30]
[326857387,1715517046715,-435.97741929,0.00043243,7]
[326857388,1715517046725,-194.1642929,0.00043243,4]
[326857389,1715517046734,-155.1527179,0.00043243,4]
[326857390,1715517046743,-1000.0,0.00043243,4]
[326857391,1715517046753,-266.00500288,0.00043243,4]
[326857392,1715517046762,-437.57280001,0.00043243,4]
[326857393,1715517046771,-527.63757821,0.00043243,4]
[326857394,1715517046780,-508.33173592,0.00043243,4]
[326857395,1715517046789,-155.07270162,0.00043243,4]
[326857396,1715517046798,-251.61360678,0.00043243,4]
[326857397,1715517046807,-155.12153743,0.00043243,4]
[326857398,1715517046817,-436.0721356,0.00043243,4]
[326857399,1715517046825,-1528.37511878,0.00043243,2]
[326857400,1715517046834,-177.64936095,0.00043243,4]
[326857401,1715517046843,-197.65521067,0.00043243,4]
[326857402,1715517046851,-220.62553626,0.00043243,4]
[326857403,1715517046862,-492.04342234,0.00043243,4]
[326857404,1715517046871,-1649.81401406,0.00043243,4]
[326857405,1715517046880,-881.1877535,0.00043243,4]
[326857406,1715517046889,-57775.10973601,0.00043243,30]
[326857407,1715517046898,-272.46946104,0.00043243,4]
[326857408,1715517046907,-500.0,0.0004326,30]
[326857409,1715517046917,-1000.0,0.0004326,30]
[326857410,1715517046925,-3100.73264878,0.00044,30]
[326857411,1715517046934,-158.0282973,0.0004403,30]
[326857412,1715517046943,-154.77516392,0.00044156,30]
[326857413,1715517046952,-154.77516392,0.00044604,30]
[326857414,1715517046961,-37738.3698,0.00045,30]
[326857415,1715517046971,-1000.0,0.00045,30]
[326857416,1715517046980,-154.77516392,0.00045315,30]
[326857417,1715517046989,-158.81785743,0.0004614,30]
[326857418,1715517046998,-154.77516392,0.00046153,30]
[326857420,1715517047007,-151.0179077,0.00046179,30]
[326857421,1715517047016,-158.81785743,0.00046268,30]
[326857422,1715517047025,-152.86934781,0.00047,30]
[326857423,1715517047034,-153.0,0.000471,2]
[326857424,1715517047043,-153.0,0.000471,2]
[326857425,1715517047053,-306.0,0.000471,2]
[326857426,1715517047063,-153.0,0.000471,2]
[326857427,1715517047072,-153.0,0.000471,2]
[326857428,1715517047081,-153.0,0.000471,2]
[326857429,1715517047090,-153.0,0.000471,2]
[326857430,1715517047100,-153.0,0.000471,2]
[326857431,1715517047111,-153.0,0.000471,2]
[326857432,1715517047120,-154.77516392,0.00048637,30]
[326857434,1715517047129,-205.19131335,0.00049,10]
[326857436,1715517047138,-156.9806603,0.00049155,2]
[326857438,1715517047147,-153.0,0.00049593,2]
[326857440,1715517047156,-153.0,0.00049593,2]
[326857442,1715517047166,-153.0,0.00049593,2]
[326857444,1715517047175,-153.0,0.00049593,2]
[326857446,1715517047184,-153.0,0.00049593,2]
[326857448,1715517047194,-153.0,0.00049593,2]
[326857450,1715517047203,-153.0,0.00049593,2]
[326857452,1715517047212,-153.0,0.00049593,2]
[326857454,1715517047221,-153.0,0.00049593,2]
[326857456,1715517047230,-153.0,0.00049593,2]
[326857458,1715517047240,-153.0,0.00049593,2]
[326857459,1715517047249,-153.0,0.00049593,2]
[326857461,1715517047258,-153.0,0.00049593,2]
[326857463,1715517047267,-153.0,0.00049593,2]
[326857465,1715517047276,-153.0,0.00049593,2]
[326857467,1715517047285,-153.0,0.00049593,2]
[326857469,1715517047294,-153.0,0.00049593,2]
[326857471,1715517047304,-153.0,0.00049593,2]
[326857473,1715517047313,-153.0,0.00049593,2]
[326857475,1715517047322,-153.0,0.00049593,2]
[326857477,1715517047331,-153.0,0.00049599,2]
[326857479,1715517047340,-153.0,0.00049599,2]
[326857481,1715517047349,-153.0,0.00049599,2]
[326857483,1715517047358,-153.0,0.00049599,2]
[326857485,1715517047367,-153.0,0.00049599,2]
[326857487,1715517047376,-153.0,0.00049599,2]
[326857489,1715517047385,-153.0,0.00049599,2]
[326857491,1715517047394,-153.0,0.00049599,2]
[326857492,1715517047403,-153.0,0.00049599,2]
[326857494,1715517047413,-153.0,0.00049599,2]
[326857497,1715517047423,-153.0,0.00049599,2]
[326857499,1715517047432,-153.0,0.00049599,2]
[326857500,1715517047441,-153.0,0.00049599,2]
[326857503,1715517047451,-153.0,0.00049599,2]
[326857505,1715517047460,-153.0,0.00049599,2]
[326857507,1715517047468,-153.0,0.00049599,2]
[326857508,1715517047477,-153.0,0.00049599,2]
[326857509,1715517047487,-153.0,0.00049599,2]
[326857510,1715517047495,-153.0,0.00049599,2]
[326857512,1715517047504,-153.0,0.00049599,2]
[326857514,1715517047514,-153.0,0.00049599,2]
[326857516,1715517047522,-153.0,0.00049599,2]
[326857518,1715517047532,-153.0,0.00049599,2]
[326857520,1715517047541,-153.0,0.00049599,2]
[326857521,1715517047550,-153.0,0.00049599,2]
[326857522,1715517047559,-153.0,0.00049599,2]
[326857523,1715517047568,-153.0,0.00049599,2]
[326857524,1715517047577,-153.0,0.00049599,2]
[326857525,1715517047586,-153.0,0.00049599,2]
[326857526,1715517047595,-153.0,0.00049599,2]
[326857527,1715517047604,-153.0,0.00049599,2]
[326857528,1715517047613,-153.0,0.00049599,2]
[326857529,1715517047622,-153.0,0.00049599,2]
[326857530,1715517047632,-153.0,0.00049599,2]
[326857531,1715517047641,-153.0,0.00049599,2]
[326857532,1715517047652,-222.544369,0.00049922,2]
[326857533,1715517047661,-153.0,0.00049922,2]
[326857534,1715517047670,-500.0,0.0005,30]
[326857535,1715517047680,-293.9161103,0.0005,120]
[326857536,1715517047689,-505.62401456,0.0005,120]
[326857537,1715517047700,-513.18586719,0.0005,10]
[326857538,1715517047709,-960.01494106,0.0005,10]
[326857539,1715517047718,-153.0,0.00050277,2]
[326857540,1715517047727,-153.2765179,0.00050277,2]
[326857541,1715517047736,-153.0,0.00050277,2]
[326857542,1715517047746,-153.0,0.00050277,2]
[326857543,1715517047756,-153.0,0.00050277,2]
[326857544,1715517047765,-153.0,0.00050277,2]
[326857545,1715517047777,-154.6619177,0.00050277,2]
[326857546,1715517047786,-154.77516392,0.0005055,60]
[326857547,1715517047795,-152.86934781,0.00050677,60]
[326857548,1715517047805,-153.0,0.0005075,2]
[326857549,1715517047815,-153.0,0.0005075,2]
[326857550,1715517047823,-153.0,0.0005075,2]
[326857551,1715517047833,-153.0,0.0005075,2]
[326857552,1715517047842,-153.0,0.0005075,2]
[326857553,1715517047851,-153.0,0.0005075,2]
[326857554,1715517047860,-153.0,0.0005075,2]
[326857555,1715517047869,-153.0,0.0005075,2]
[326857556,1715517047878,-153.0,0.0005075,2]
[326857557,1715517047888,-153.0,0.0005075,2]
[326857558,1715517047897,-153.0,0.0005075,2]
[326857559,1715517047906,-153.0,0.0005075,2]
[326857560,1715517047916,-153.0,0.0005075,2]
[326857561,1715517047925,-153.0,0.0005075,2]
[326857562,1715517047933,-153.0,0.0005075,2]
[326857563,1715517047943,-153.0,0.0005075,2]
[326857564,1715517047952,-153.0,0.0005075,2]
[326857565,1715517047962,-153.0,0.0005075,2]
[326857566,1715517047972,-153.0,0.0005075,2]
[326857567,1715517047981,-153.0,0.0005075,2]